bitfinex-derivatives/quotes_ETHF0:USTF0_20210702
["timestamp","ask_amount","ask_price","bid_price","bid_amount"]
[1625254261419,2.20527,2087.8,2087.7,59.0129]
[1625254261568,2.20527,2087.8,2087.6,2.20527]
[1625254263326,3.20527,2088.1,2087.6,2.20527]
[1625254263479,2.20527,2088.1,2087.6,2.20527]
[1625254263828,2.20527,2088.1,2088.0,2.20527]
[1625254265135,0.76927,2088.1,2088.0,2.20527]
[1625254267684,0.76927,2088.1,2088.0,52.37027]
[1625254268035,2.53854,2088.4,2088.0,52.37027]
[1625254268136,1.53854,2088.4,2088.0,52.37027]
[1625254269937,1.53854,2088.4,2088.3,2.20527]
[1625254276419,1.53854,2088.4,2088.0,2.20527]
[1625254276520,1.53854,2088.4,2087.5,1.41348217]
[1625254276619,1.53854,2088.4,2087.3,2.82696434]
[1625254276620,1.0,2088.3,2087.3,1.41363568]
[1625254277072,59.2093,2088.2,2087.3,1.41363568]
[1625254277172,1.0,2088.1,2087.1,1.41365412]
[1625254277775,1.0,2088.1,2087.4,47.4881]
[1625254277978,2.20527,2087.7,2087.6,2.20527]
[1625254278178,3.4081,2087.7,2087.6,2.20527]
[1625254280234,3.20527,2088.1,2087.6,2.20527]
[1625254280336,2.20527,2088.1,2087.6,2.20527]
[1625254281038,2.20527,2088.1,2088.0,51.2392]
[1625254282038,2.20527,2088.1,2088.0,53.44447]
[1625254285151,1.94723769,2088.7,2088.0,53.44447]
[1625254285152,0.71157334,2088.8,2088.0,55.97037]
[1625254285250,2.05467811,2088.9,2088.1,5.0]
[1625254285350,2.05467811,2088.9,2088.1,6.0]
[1625254285649,3.6115362,2089.1,2088.2,17.272641]
[1625254285753,6.94538608,2089.7,2088.8,46.5497]
[1625254285850,2.33774709,2089.3,2088.9,1.0]
[1625254285952,2.78143272,2089.4,2088.9,1.0]
[1625254286055,2.78143272,2089.4,2089.3,4.41054]
[1625254286153,2.29943272,2089.4,2089.3,9.02464]
[1625254286252,0.33983272,2089.4,2089.3,9.02464]
[1625254286354,7.77210176,2090.8,2089.3,26.425739]
[1625254286454,7.77210176,2090.8,2089.4,1.15]
[1625254286554,7.77210176,2090.8,2090.2,49.1595]
[1625254286704,7.77210176,2090.8,2090.2,52.1075]
[1625254287017,2.20527,2090.8,2090.2,52.1075]
[1625254287117,2.20527,2090.8,2090.2,2.948]
[1625254287721,2.20527,2090.8,2090.3,1.0]
[1625254287971,2.20527,2090.8,2090.2,2.948]
[1625254288121,2.20527,2090.8,2090.5,4.41054]
[1625254289627,2.20527,2090.8,2090.5,5.41054]
[1625254289925,5.56283113,2091.2,2090.5,5.41054]
[1625254290028,5.56283113,2091.2,2091.1,2.20527]
[1625254290127,5.56283113,2091.2,2091.1,5.99207]
[1625254290484,20.54584429,2091.7,2091.1,5.99207]
[1625254290832,2.20527,2091.8,2091.2,48.874]
[1625254292086,2.20527,2091.8,2091.7,3.55966298]
[1625254292386,2.20527,2091.8,2091.7,2.42540794]
[1625254292483,2.20527,2091.8,2091.7,5.52030794]
[1625254294837,2.20527,2091.8,2091.7,1.22590794]
[1625254294937,2.20527,2091.8,2089.8,15.2258]
[1625254295037,5.85857,2091.8,2089.8,15.2258]
[1625254295541,5.85857,2091.8,2089.9,17.368044]
[1625254295640,5.85857,2091.8,2090.5,54.3329]
[1625254295941,5.85857,2091.8,2090.6,1.0]
[1625254296141,5.85857,2091.8,2091.4,2.20527]
[1625254297346,2.20527,2091.8,2091.4,2.20527]
[1625254297644,2.20527,2091.8,2091.5,1.0]
[1625254297745,2.20527,2091.8,2091.4,2.20527]
[1625254298097,2.20527,2091.5,2091.4,3.20527]
[1625254298746,1.0,2092.4,2091.4,3.20527]
[1625254299449,1.0,2092.4,2091.9,53.6914]
[1625254299549,1.0,2092.4,2091.9,56.0981]
[1625254300060,1.0,2092.4,2091.9,2.4067]
[1625254300159,2.20527,2092.3,2092.2,2.20527]
[1625254302226,4.41054,2092.3,2092.2,2.20527]
[1625254304627,4.41054,2092.3,2092.2,3.20527]
[1625254306282,4.41054,2092.3,2092.2,2.20527]
[1625254307524,4.41054,2092.3,2092.2,3.20527]
[1625254308980,4.41054,2092.3,2092.2,2.20527]
[1625254310781,4.41054,2092.3,2092.0,2.20527]
[1625254314641,4.41054,2092.3,2092.0,3.20527]
[1625254315393,4.41054,2092.3,2092.0,51.75457]
[1625254315491,4.41054,2092.3,2092.0,3.20527]
[1625254316899,4.41054,2092.3,2092.0,43.33057]
[1625254317397,4.41054,2092.3,2092.0,3.20527]
[1625254318197,4.41054,2092.3,2092.2,58.2188]
[1625254318350,4.41054,2092.3,2092.2,59.2188]
[1625254318597,4.41054,2092.3,2092.2,1.0]
[1625254322311,4.41054,2092.3,2092.2,3.20527]
[1625254323335,8.03394,2092.3,2092.2,3.20527]
[1625254323534,8.03394,2092.3,2092.2,2.20527]
[1625254323934,8.03394,2092.3,2092.2,3.20527]
[1625254324136,8.03394,2092.3,2092.2,2.20527]
[1625254324737,8.03394,2092.3,2092.2,3.20527]
[1625254325037,8.03394,2092.3,2092.2,2.20527]
[1625254326046,8.03394,2092.3,2092.0,2.20527]
[1625254326346,8.03394,2092.3,2091.6,2.20527]
[1625254326594,8.03394,2092.3,2091.6,2.00247]
[1625254326595,53.3189,2091.7,2091.6,2.00247]
[1625254326695,53.3189,2091.7,2090.6,15.6727]
[1625254326696,56.4303,2091.7,2090.6,15.6727]
[1625254326799,56.4303,2091.7,2088.6,57.9874]
[1625254326898,56.4303,2091.7,2089.5,1.0]
[1625254327498,56.4303,2091.7,2089.6,17.430852]
[1625254327597,56.4303,2091.7,2089.7,1.0]
[1625254327699,56.4303,2091.7,2090.0,1.15]
[1625254327798,61.4303,2091.7,2090.1,1.0]
[1625254328251,2.20527,2090.9,2090.8,2.20527]
[1625254328401,5.39607,2090.9,2090.8,2.20527]
[1625254330306,7.60134,2090.9,2090.8,2.20527]
[1625254332258,7.60134,2090.9,2090.8,3.20527]
[1625254332360,4.41054,2090.9,2090.8,3.20527]
[1625254332809,4.41054,2090.9,2090.8,2.20527]
[1625254335878,6.83264,2090.9,2090.8,2.20527]
[1625254337585,4.41054,2090.9,2090.8,2.20527]
[1625254342200,4.41054,2090.9,2090.8,3.20527]
[1625254349937,7.75994,2090.9,2090.8,2.20527]
[1625254350039,7.75994,2090.9,2090.5,1.0]
[1625254350187,7.75994,2090.9,2090.0,1.15]
[1625254350436,5.28547,2090.3,2090.2,2.20527]
[1625254351137,5.28547,2090.3,2090.2,3.20527]
[1625254351792,5.28547,2090.3,2090.2,1.0]
[1625254352404,7.49074,2090.3,2090.2,1.0]
[1625254352609,3.0802,2090.3,2090.2,1.0]
[1625254352805,66.8561,2091.4,2090.2,1.0]
[1625254353157,7.3407,2091.7,2090.2,1.0]
[1625254353261,5.0,2091.7,2090.2,1.0]
[1625254354158,15.5379,2091.9,2090.2,1.0]
[1625254354261,15.5379,2091.9,2090.4,43.0353]
[1625254354366,15.5379,2091.9,2090.5,1.0]
[1625254354458,2.20527,2090.6,2090.5,1.0]
[1625254355812,15.5379,2091.9,2090.5,1.0]
[1625254356415,2.20527,2091.1,2090.7,2.20527]
[1625254356515,2.20527,2091.1,2090.8,1.0]
[1625254357832,2.20527,2091.1,2090.9,1.0]
[1625254357932,2.20527,2091.1,2090.7,2.20527]
[1625254358434,2.20527,2090.8,2090.7,2.20527]
[1625254359187,2.20527,2090.8,2090.7,3.20527]
[1625254359839,2.20527,2091.1,2090.7,3.20527]
[1625254363294,2.20527,2091.1,2090.7,6.26557]
[1625254364446,0.77127,2091.1,2091.0,2.20527]
[1625254364545,0.77127,2091.1,2091.0,3.20527]
[1625254364644,15.5379,2091.9,2091.0,3.20527]
[1625254364944,15.5379,2091.9,2091.8,45.1037]
[1625254365097,15.5379,2091.9,2091.8,48.4399]
[1625254365195,1.0,2092.4,2091.8,49.4399]
[1625254366446,3.20527,2092.4,2092.3,2.20527]
[1625254366549,3.20527,2092.4,2092.3,5.54817]
[1625254366897,3.20527,2092.4,2092.3,6.54817]
[1625254368455,5.41054,2092.4,2092.3,6.54817]
[1625254371662,5.41054,2092.4,2092.3,53.61507]
[1625254372163,5.41054,2092.4,2092.3,6.54817]
[1625254372820,3.20527,2092.4,2092.3,53.25037]
[1625254373472,1.0,2092.4,2092.3,53.25037]
[1625254374221,1.0,2092.4,2092.3,6.54817]
[1625254382858,3.8718,2092.4,2092.3,2.20527]
[1625254384619,8.28234,2092.4,2092.0,2.20527]
[1625254385019,8.28234,2092.4,2092.1,1.0]
[1625254385121,3.8718,2092.4,2092.1,1.0]
[1625254386323,3.8718,2092.4,2092.1,42.7466]
[1625254388026,3.8718,2092.4,2092.1,1.0]
[1625254388635,2.20527,2092.2,2092.1,1.0]
[1625254388886,3.8718,2092.4,2092.1,1.0]
[1625254392707,3.8718,2092.4,2092.3,2.20527]
[1625254393659,3.8718,2092.4,2092.3,3.20527]
[1625254394711,6.07707,2092.4,2092.3,3.20527]
[1625254397072,6.07707,2092.4,2092.3,2.20527]
[1625254402181,6.07707,2092.4,2092.3,3.20527]
[1625254404037,6.07707,2092.4,2092.3,2.20527]
[1625254412383,6.07707,2092.4,2092.3,3.20527]
[1625254413158,5.07707,2092.4,2092.3,3.20527]
[1625254413650,5.07707,2092.4,2092.3,2.20527]
[1625254419020,5.07707,2092.4,2092.3,1.20527]
[1625254420124,5.07707,2092.4,2092.0,3.20527]
[1625254420823,2.20527,2092.1,2092.0,3.20527]
[1625254421278,2.20527,2092.4,2092.0,6.99057]
[1625254421380,2.20527,2092.4,2092.0,7.95427]
[1625254421778,2.20527,2092.4,2092.3,51.031]
[1625254421877,2.20527,2092.4,2092.3,52.031]
[1625254422278,2.20527,2092.4,2092.3,69.31968]
[1625254422880,2.20527,2092.4,2092.3,71.52495]
[1625254424332,2.20527,2092.4,2092.3,20.49395]
[1625254424585,2.20527,2092.4,2092.3,3.20527]
[1625254425387,2.20527,2092.4,2092.3,6.00497]
[1625254431219,14.9642,2093.5,2092.3,6.00497]
[1625254433018,2.20527,2093.2,2093.0,2.20527]
[1625254433173,2.20527,2093.2,2093.0,47.82597]
[1625254433722,2.20527,2093.2,2093.0,2.20527]
[1625254434876,2.20527,2093.2,2093.0,3.20527]
[1625254438630,2.20527,2093.2,2093.0,5.67347]
[1625254449416,2.20527,2093.2,2093.0,49.80947]
[1625254449766,2.20527,2093.2,2093.0,5.67347]
[1625254451167,2.20527,2093.2,2093.0,59.59807]
[1625254451922,2.20527,2093.2,2093.0,5.67347]
[1625254452471,2.20527,2093.2,2093.0,55.78767]
[1625254452922,2.20527,2093.2,2093.0,5.67347]
[1625254476005,2.20527,2093.2,2093.0,3.20527]
[1625254477710,2.20527,2093.2,2093.1,54.8527]
[1625254477862,2.20527,2093.2,2093.1,55.8527]
[1625254479876,2.20527,2093.2,2093.1,1.0]
[1625254483534,14.4483,2094.2,2093.1,1.0]
[1625254483833,14.4483,2094.2,2093.1,18.194354]
[1625254485438,2.20527,2094.1,2093.9,2.20527]
[1625254485590,2.20527,2094.1,2093.9,4.79007]
[1625254487038,2.20527,2094.1,2094.0,1.0]
[1625254487490,2.20527,2094.4,2094.0,1.0]
[1625254487991,2.20527,2094.4,2094.1,17.283982]
[1625254488091,2.20527,2094.4,2094.2,1.0]
[1625254488292,2.20527,2094.4,2094.3,40.3904]
[1625254488392,2.20527,2094.4,2094.3,41.3904]
[1625254488896,0.35535123,2094.9,2094.3,41.3904]
[1625254488994,1.96725529,2095.0,2094.3,41.3904]
[1625254489302,1.40575529,2095.0,2094.3,41.3904]
[1625254489450,3.1475941,2095.3,2094.3,41.3904]
[1625254489548,3.1475941,2095.3,2095.0,7.87204]
[1625254489649,3.1475941,2095.3,2095.1,1.0]
[1625254489900,2.8106301,2095.4,2095.1,1.0]
[1625254490099,2.8106301,2095.4,2095.2,53.9688]
[1625254490199,2.8106301,2095.4,2095.2,54.9688]
[1625254490302,2.20527,2095.7,2095.2,1.0]
[1625254491552,2.20527,2095.7,2095.6,5.55967]
[1625254495066,2.20527,2095.7,2095.6,6.55967]
[1625254498424,2.20527,2095.7,2095.6,5.55967]
[1625254499221,2.20527,2095.7,2095.6,6.55967]
[1625254499868,2.20527,2095.7,2095.6,5.55967]
[1625254501281,2.20527,2095.7,2095.6,2.20527]
[1625254501781,2.20527,2095.7,2095.5,2.20527]
[1625254503038,2.20527,2095.7,2094.0,15.7182]
[1625254503189,2.20527,2095.7,2094.1,1.0]
[1625254503547,2.20527,2095.7,2095.2,2.20527]
[1625254504706,7.20527,2095.7,2095.2,2.20527]
[1625254505204,7.20527,2095.7,2094.1,1.0]
[1625254505454,51.7004,2095.4,2094.1,1.0]
[1625254505555,2.20527,2094.9,2094.6,2.20527]
[1625254505658,2.20527,2094.9,2094.6,6.54347]
[1625254506057,4.88687,2094.9,2094.6,6.54347]
[1625254506158,4.88687,2094.9,2094.6,5.54347]
[1625254506859,4.88687,2094.9,2094.6,2.20527]
[1625254507562,2.20527,2094.8,2094.6,2.20527]
[1625254509414,5.0,2095.5,2094.6,2.20527]
[1625254509518,5.0,2095.9,2094.8,49.542]
[1625254509615,4.47555648,2096.6,2095.3,2.20527]
[1625254509715,9.23408093,2096.8,2095.3,6.98537]
[1625254509867,4.47508093,2096.8,2095.3,5.98537]
[1625254510165,0.952,2097.0,2095.3,5.98537]
[1625254510265,19.82980451,2097.1,2095.3,5.98537]
[1625254510719,5.0,2097.0,2095.3,5.98537]
[1625254511619,2.20527,2095.9,2095.8,2.20527]
[1625254511720,2.20527,2095.9,2095.8,5.48697]
[1625254513572,4.41054,2095.9,2095.8,5.48697]
[1625254516291,4.41054,2095.9,2095.8,3.09037]
[1625254516652,4.41054,2095.9,2095.8,1.87907]
[1625254516754,4.41054,2095.9,2095.3,2.20527]
[1625254517656,2.20527,2095.9,2095.6,2.20527]
[1625254518308,7.20527,2095.9,2095.6,2.20527]
[1625254518458,7.20527,2095.9,2095.6,7e-05]
[1625254519419,45.1368,2096.4,2095.6,7e-05]
[1625254519524,0.9505,2096.5,2095.6,7e-05]
[1625254519620,4.41054,2095.7,2095.6,3.75417]
[1625254519720,4.41054,2095.7,2095.6,4.75417]
[1625254519872,4.41054,2095.7,2095.6,3.75417]
[1625254520022,2.20527,2095.7,2095.6,3.75417]
[1625254520672,2.20527,2095.7,2095.6,4.75417]
[1625254521728,2.20527,2095.7,2095.6,3.75417]
[1625254523332,2.20527,2095.7,2094.9,3.7827]
[1625254523431,8.20527,2095.7,2092.9,0.9509]
[1625254523530,10.75347,2095.7,2092.9,0.9509]
[1625254523630,2.20527,2093.5,2093.3,2.20527]
[1625254523730,2.20527,2093.5,2093.3,0.77227]
[1625254523831,2.20527,2093.5,2093.1,2.20527]
[1625254524033,55.1198,2093.2,2093.1,2.20527]
[1625254525648,2.20527,2093.2,2092.8,2.20527]
[1625254527703,2.20527,2092.9,2092.8,2.20527]
[1625254527808,4.64527,2092.9,2092.8,2.20527]
[1625254529858,2.20527,2092.9,2092.8,2.20527]
[1625254539909,2.20527,2092.9,2092.6,2.20527]
[1625254541760,2.20527,2092.7,2092.6,2.20527]
[1625254569847,1.0,2093.3,2092.6,2.20527]
[1625254569946,2.20527,2093.9,2093.2,4.41054]
[1625254570049,31.67844478,2094.5,2093.2,7.82874]
[1625254570348,31.67844478,2094.5,2094.2,57.7058]
[1625254570459,31.67844478,2094.5,2094.2,61.5086]
[1625254570460,14.7092,2094.5,2094.2,61.5086]
[1625254570649,1.40026731,2094.9,2094.2,61.5086]
[1625254570847,2.40026731,2094.9,2094.2,61.5086]
[1625254570949,1.0,2094.9,2094.2,61.5086]
[1625254571599,1.0,2094.9,2094.2,3.8028]
[1625254571900,2.20527,2094.4,2094.3,2.20527]
[1625254573903,4.41054,2094.4,2094.3,2.20527]
[1625254575565,4.41054,2094.4,2094.1,2.20527]
[1625254575666,7.33584,2094.4,2092.7,1.0]
[1625254575816,1.0,2094.3,2092.6,4.759]
[1625254575915,2.20527,2093.6,2093.1,2.20527]
[1625254577271,5.0,2093.5,2093.1,2.20527]
[1625254577543,44.7688,2093.2,2092.9,2.20527]
[1625254577946,4.41054,2093.0,2092.9,2.20527]
[1625254582432,1.0,2093.4,2092.9,2.20527]
[1625254582530,1.0,2093.5,2092.9,2.20527]
[1625254582631,70.8147,2094.1,2092.9,2.20527]
[1625254583584,1.0,2094.0,2092.9,2.20527]
[1625254584034,2.20527,2093.1,2092.9,2.20527]
[1625254589645,2.20527,2093.3,2092.9,2.20527]
[1625254590096,2.20527,2093.3,2093.2,5.09217]
[1625254598032,1.0,2093.6,2093.2,5.09217]
[1625254598131,2.20527,2093.8,2093.2,7.29744]
[1625254600192,2.20527,2093.8,2093.6,2.20527]
[1625254601643,1.0,2094.4,2093.7,50.7623]
[1625254601794,1.0,2094.4,2093.7,53.5475]
[1625254602146,1.0,2094.4,2094.3,4.70877]
[1625254602295,2.20527,2094.5,2094.3,4.70877]
[1625254604146,4.41054,2094.5,2094.3,4.70877]
[1625254608907,4.41054,2094.5,2094.2,2.20527]
[1625254611824,40.906,2094.3,2094.2,2.20527]
[1625254611922,4.41054,2094.5,2094.2,2.20527]
[1625254612877,40.9138,2094.3,2094.2,2.20527]
[1625254613228,40.9138,2094.3,2093.8,2.20527]
[1625254613828,1.0,2094.4,2093.8,2.20527]
[1625254613978,5.8195117,2094.5,2093.8,2.20527]
[1625254614080,6.8195117,2094.5,2093.8,2.20527]
[1625254614330,2.20527,2093.9,2093.8,2.20527]
[1625254614430,2.20527,2093.9,2093.8,55.54097]
[1625254615281,2.20527,2093.9,2093.8,2.20527]
[1625254618590,2.4089717,2094.5,2093.8,2.20527]
[1625254618890,2.4089717,2094.5,2094.0,48.7594]
[1625254618989,1.4089717,2094.5,2093.8,2.20527]
[1625254619090,2.4089717,2094.5,2093.8,2.20527]
[1625254619590,1.0,2094.5,2093.8,2.20527]
[1625254620241,2.20527,2094.1,2093.8,4.41054]
[1625254620341,2.20527,2094.1,2094.0,40.1662]
[1625254623200,2.20527,2094.1,2093.8,4.41054]
[1625254625004,2.20527,2094.1,2093.8,2.20527]
[1625254625956,2.20527,2094.1,2094.0,42.5047]
[1625254626055,2.20527,2094.1,2094.0,45.6457]
[1625254626555,1.40810555,2094.7,2094.0,45.6457]
[1625254626756,2.40810555,2094.7,2094.0,45.6457]
[1625254626858,1.0,2094.7,2094.0,3.141]
[1625254627757,2.40800797,2094.7,2094.0,3.141]
[1625254627859,2.40800797,2094.7,2093.8,4.41054]
[1625254628058,2.40800797,2094.7,2093.9,45.9942]
[1625254628308,2.20527,2094.0,2093.9,45.9942]
[1625254629761,2.20527,2094.0,2093.8,4.41054]
[1625254631225,2.20527,2094.0,2093.9,40.6706]
[1625254633226,2.20527,2094.0,2093.8,4.41054]
[1625254634083,2.20527,2094.0,2093.9,41.3344]
[1625254634331,2.20527,2094.0,2093.8,4.41054]
[1625254635133,2.20527,2094.0,2093.9,59.4996]
[1625254635790,2.20527,2094.0,2093.8,4.41054]
[1625254637345,2.20527,2094.0,2093.9,50.4754]
[1625254637754,1.0,2094.7,2093.9,50.4754]
[1625254638403,2.20527,2094.4,2094.2,5.71007]
[1625254644372,2.20527,2094.4,2094.2,3.5048]
[1625254644472,2.20527,2094.4,2093.8,2.20527]
[1625254644573,5.18137,2094.4,2093.9,45.0249]
[1625254644674,5.18137,2094.4,2093.8,2.20527]
[1625254645785,5.18137,2094.4,2093.7,2.20527]
[1625254645884,6.18137,2094.4,2093.7,2.20527]
[1625254646138,7.58958982,2094.4,2093.7,2.20527]
[1625254646438,2.20527,2093.8,2093.7,2.20527]
[1625254646939,2.20527,2093.8,2093.2,2.20527]
[1625254647040,4.82367,2093.8,2093.1,6.16151323]
[1625254647137,5.82367,2093.8,2093.1,6.16151323]
[1625254647690,5.82367,2093.8,2093.1,4.759]
[1625254648038,42.7289,2093.6,2093.1,4.759]
[1625254648139,5.82367,2093.8,2093.1,4.759]
[1625254648439,2.20527,2093.2,2093.1,4.759]
[1625254651843,5.12917,2093.2,2093.1,4.759]
[1625254655911,2.20527,2093.2,2093.1,4.759]
[1625254657011,2.20527,2093.3,2093.1,4.759]
[1625254658660,2.20527,2093.3,2093.1,6.96427]
[1625254659464,2.20527,2093.3,2093.1,4.759]
[1625254659864,2.20527,2093.3,2092.8,2.20527]
[1625254660317,2.20527,2093.3,2092.8,61.09087]
[1625254660617,2.20527,2093.3,2092.8,2.20527]
[1625254663176,2.20527,2093.3,2092.8,59.08407]
[1625254665236,2.20527,2093.3,2092.8,2.20527]
[1625254666538,2.20527,2093.3,2093.1,48.4448]
[1625254666641,2.20527,2093.3,2093.1,50.8876]
[1625254666747,2.20527,2093.3,2093.2,2.20527]
[1625254674563,2.20527,2093.3,2093.2,5.52997]
[1625254676473,2.20527,2093.3,2093.2,47.71977]
[1625254681941,2.20527,2093.3,2093.2,5.52997]
[1625254682608,2.20527,2093.3,2093.2,61.69477]
[1625254682694,2.20527,2093.3,2093.2,5.52997]
[1625254683953,2.20527,2093.3,2093.2,61.94917]
[1625254685155,1.0,2093.8,2093.2,61.94917]
[1625254685257,14.5779,2094.1,2093.2,61.94917]
[1625254685407,1.0,2094.0,2093.2,61.94917]
[1625254686207,1.0,2094.0,2093.2,5.52997]
[1625254686808,1.0,2094.0,2093.3,57.8466]
[1625254686909,2.20527,2093.8,2093.3,57.8466]
[1625254690775,2.20527,2093.8,2093.2,7.73524]
[1625254691376,61.25577,2093.8,2093.2,7.73524]
[1625254691482,61.25577,2093.8,2093.2,4.41054]
[1625254691578,64.67157,2093.8,2093.2,4.41054]
[1625254691993,52.1674,2093.3,2093.2,4.41054]
[1625254692292,52.1674,2093.3,2092.7,1.40330491]
[1625254692594,2.8571,2093.3,2092.7,1.40330491]
[1625254692943,2.20527,2093.0,2092.9,2.20527]
[1625254694659,2.20527,2093.0,2092.9,54.23517]
[1625254694860,2.20527,2093.0,2092.9,2.20527]
[1625254696260,2.20527,2093.0,2092.9,43.63387]
[1625254697162,2.20527,2093.0,2092.9,2.20527]
[1625254698897,4.93267,2093.0,2092.9,2.20527]
[1625254699004,61.30447,2093.0,2092.9,2.20527]
[1625254699607,4.93267,2093.0,2092.9,2.20527]
[1625254701363,64.29777,2093.0,2092.9,2.20527]
[1625254701663,4.93267,2093.0,2092.9,2.20527]
[1625254713310,2.20527,2093.0,2092.9,2.20527]
[1625254733380,3.61559201,2093.0,2092.9,2.20527]
[1625254733733,55.00985178,2093.0,2092.9,2.20527]
[1625254734083,4.18015178,2093.0,2092.9,2.20527]
[1625254734583,5.02649703,2093.0,2092.9,2.20527]
[1625254734683,5.02649703,2093.0,2091.9,21.31354443]
[1625254734785,1.0,2092.9,2091.9,21.31354443]
[1625254734885,55.0674,2092.7,2091.9,21.31354443]
[1625254734985,56.0674,2092.7,2091.9,19.9052]
[1625254735086,1.0,2092.7,2091.9,19.9052]
[1625254735187,1.0,2092.7,2091.9,4.759]
[1625254735437,2.20527,2092.4,2092.3,2.20527]
[1625254735536,5.18117,2092.4,2092.3,2.20527]
[1625254736749,5.18117,2092.4,2092.3,61.86937]
[1625254736847,5.18117,2092.4,2092.3,2.20527]
[1625254737400,7.38644,2092.4,2092.3,2.20527]
[1625254747664,7.38644,2092.4,2091.9,4.759]
[1625254748013,7.38644,2092.4,2091.3,6.16570145]
[1625254748113,1.0,2092.3,2091.3,6.16570145]
[1625254748265,1.0,2092.3,2091.4,55.8793]
[1625254749517,2.20527,2091.9,2091.8,2.20527]
[1625254751472,4.41054,2091.9,2091.8,2.20527]
[1625254752023,4.41054,2091.9,2091.8,50.29497]
[1625254753425,1.0,2092.4,2091.8,50.29497]
[1625254753575,1.0,2092.4,2091.8,53.64957]
[1625254755579,2.20527,2092.5,2091.8,53.64957]
[1625254755679,3.20527,2092.5,2091.8,53.64957]
[1625254755829,3.20527,2092.5,2091.8,5.55987]
[1625254755930,3.20527,2092.5,2091.8,2.20527]
[1625254756380,56.362,2092.4,2091.8,2.20527]
[1625254756533,58.8035,2092.4,2091.8,2.20527]
[1625254757129,2.4415,2092.4,2091.8,2.20527]
[1625254757530,2.20527,2091.9,2091.8,2.20527]
[1625254760411,2.20527,2091.9,2091.8,54.20117]
[1625254760512,2.20527,2091.9,2091.8,2.20527]
[1625254775688,1.29527,2091.9,2091.8,62.21717]
[1625254775840,1.0,2092.7,2091.8,62.21717]
[1625254775940,1.0,2092.7,2091.8,64.70937]
[1625254776640,1.0,2092.7,2092.3,48.3143]
[1625254776790,1.40790188,2093.1,2092.3,2.5448]
[1625254776940,2.40790188,2093.1,2092.3,2.5448]
[1625254777390,47.752,2092.9,2092.3,2.5448]
[1625254777789,2.20527,2092.4,2092.3,2.5448]
[1625254778341,2.20527,2092.4,2092.2,2.20527]
[1625254780695,7.20527,2092.4,2092.2,2.20527]
[1625254783203,7.20527,2092.4,2091.8,2.20527]
[1625254783812,2.20527,2091.9,2091.8,2.20527]
[1625254786026,43.59187,2091.9,2091.8,2.20527]
[1625254786125,2.20527,2091.9,2091.8,2.20527]
[1625254787477,59.47387,2091.9,2091.8,2.20527]
[1625254787576,2.20527,2091.9,2091.8,2.20527]
[1625254787895,2.40968957,2092.3,2091.8,2.20527]
[1625254787998,1.40968957,2092.3,2091.8,4.83917]
[1625254788099,4.1788354,2092.4,2091.8,4.83917]
[1625254788100,4.61499376,2092.4,2091.8,4.83917]
[1625254788196,3.61499376,2092.4,2091.8,4.83917]
[1625254788346,2.20527,2092.4,2091.8,4.83917]
[1625254789757,2.20527,2092.1,2091.8,4.83917]
[1625254790965,2.20527,2092.1,2092.0,40.5017]
[1625254791168,1.40827662,2092.3,2092.0,40.5017]
[1625254791568,1.4088208,2092.6,2092.0,40.5017]
[1625254791766,1.4088208,2092.6,2092.5,4.41054]
[1625254791871,1.40858675,2092.7,2092.5,4.41054]
[1625254792020,1.40858675,2092.7,2092.5,7.26354]
[1625254792221,1.97202146,2092.8,2092.5,7.26354]
[1625254792222,1.40904841,2092.8,2092.5,7.26354]
[1625254792570,1.97266777,2092.9,2092.5,7.26354]
[1625254792571,1.40854888,2092.9,2092.5,7.26354]
[1625254793827,1.40854888,2092.9,2092.8,2.20527]
[1625254794078,4.17723843,2093.0,2092.8,2.20527]
[1625254794230,1.97102754,2092.9,2092.8,2.20527]
[1625254795029,60.86442754,2092.9,2092.8,2.20527]
[1625254795130,1.97102754,2092.9,2092.8,2.20527]
[1625254795229,1.97102754,2092.9,2092.5,5.05827]
[1625254795683,1.40854334,2092.8,2092.5,5.05827]
[1625254795883,1.40854334,2092.8,2092.7,2.20527]
[1625254795984,3.61452546,2093.0,2092.7,2.20527]
[1625254796731,1.40925546,2093.0,2092.7,2.20527]
[1625254797836,2.20527,2092.8,2092.7,2.20527]
[1625254798287,47.27117,2092.8,2092.7,2.20527]
[1625254798386,2.20527,2092.8,2092.7,2.20527]
[1625254799039,3.61425606,2092.8,2092.7,2.20527]
[1625254799290,49.69865606,2092.8,2092.7,2.20527]
[1625254799740,48.28967,2092.8,2092.7,2.20527]
[1625254800191,2.20527,2092.8,2092.7,2.20527]
[1625254800744,58.81187,2092.8,2092.7,2.20527]
[1625254800895,2.20527,2092.8,2092.7,2.20527]
[1625254803663,2.20527,2092.8,2092.7,4.52477]
[1625254809636,2.20527,2092.8,2092.7,47.09827]
[1625254810337,1.41062482,2093.1,2092.7,47.09827]
[1625254811139,3.61586133,2093.2,2092.7,47.09827]
[1625254811939,3.61586133,2093.2,2093.1,2.20527]
[1625254812440,4.17978756,2093.2,2093.1,2.20527]
[1625254812540,62.04398756,2093.2,2093.1,2.20527]
[1625254812640,4.17978756,2093.2,2093.1,2.20527]
[1625254813143,58.35698756,2093.2,2093.1,2.20527]
[1625254813294,4.17978756,2093.2,2093.1,2.20527]
[1625254813444,1.97451756,2093.2,2093.1,2.20527]
[1625254815296,1.41076029,2093.2,2093.1,2.20527]